bitfinex-derivatives/quotes_ETHF0:USTF0_20240925
["timestamp","ask_amount","ask_price","bid_price","bid_amount"]
[1727307529544,0.388,2577.7,2577.5,45.54164955]
[1727307530236,0.78388,2577.8,2577.6,0.388]
[1727307530437,0.78388,2577.8,2577.5,45.54164955]
[1727307530746,0.3959,2577.8,2577.5,45.15362955]
[1727307530942,0.38801,2577.7,2577.5,40.8]
[1727307531144,0.38802,2577.6,2577.4,0.7723]
[1727307531345,0.38802,2577.6,2577.4,1.16034]
[1727307531346,0.77872,2577.6,2577.4,1.16034]
[1727307531648,0.77872,2577.6,2577.4,41.96034]
[1727307533349,0.38803,2577.5,2577.4,40.8]
[1727307533540,0.38809,2577.1,2576.8,2.16015896]
[1727307533741,0.38808,2577.2,2577.0,0.3881]
[1727307533941,0.38808,2577.2,2577.0,41.1881]
[1727307534151,0.38807,2577.3,2577.1,0.38808]
[1727307534454,0.38807,2577.3,2577.1,0.78298]
[1727307534958,0.38807,2577.3,2577.1,0.3949]
[1727307535348,0.38807,2577.3,2577.1,0.78298]
[1727307535550,0.4049,2577.4,2577.1,0.3949]
[1727307535551,0.38807,2577.2,2577.1,0.3949]
[1727307536354,0.38807,2577.2,2577.1,0.78299]
[1727307536550,0.38806,2577.3,2577.1,0.3949]
[1727307536946,3.2078,2577.3,2576.9,0.38811]
[1727307537148,0.38808,2577.2,2577.0,0.38809]
[1727307537351,3.59586,2577.3,2577.1,41.18809]
[1727307537548,3.59586,2577.3,2577.1,41.59509]
[1727307537745,0.38806,2577.3,2577.1,41.59509]
[1727307538048,0.38803,2577.5,2577.3,0.38806]
[1727307538256,0.3907,2577.6,2577.4,3.4069]
[1727307538461,0.38803,2577.5,2577.4,0.3769]
[1727307541366,0.38803,2577.5,2577.1,40.8]
[1727307541663,0.38807,2577.2,2577.1,40.8]
[1727307545856,4.92031,2577.4,2577.1,40.8]
[1727307545857,3.9502,2577.4,2577.1,40.8]
[1727307546055,3.96845,2577.4,2577.2,3.41806]
[1727307546257,0.38806,2577.3,2577.1,41.18808]
[1727307546553,0.38806,2577.3,2577.2,0.38807]
[1727307547059,0.38807,2577.3,2577.1,40.8]
[1727307547255,0.38807,2577.2,2577.1,40.8]
[1727307547457,0.38806,2577.3,2577.1,41.18809]
[1727307548155,0.38807,2577.2,2577.1,40.8]
[1727307548350,1.35826,2577.2,2577.1,40.8]
[1727307548555,0.38807,2577.2,2577.1,40.8]
[1727307550557,4.26807,2577.2,2577.1,40.8]
[1727307550864,0.97022,2577.1,2576.7,2.94365896]
[1727307551068,0.38813,2576.8,2576.7,0.7675]
[1727307551465,0.38813,2576.8,2576.7,41.5675]
[1727307553154,0.38812,2576.9,2576.7,44.5975]
[1727307553354,0.38812,2576.9,2576.7,44.98564]
[1727307554670,0.38813,2576.8,2576.7,44.98564]
[1727307554866,0.38813,2576.8,2576.7,44.5975]
[1727307555066,0.38813,2576.8,2576.7,40.8]
[1727307555268,0.38816,2576.6,2576.4,3.34714896]
[1727307555470,0.38816,2576.6,2576.4,2.33399]
[1727307555866,0.38818,2576.5,2576.4,0.7828]
[1727307556065,0.38818,2576.5,2576.4,0.3768]
[1727307556259,0.38821,2576.3,2576.1,1.40138896]
[1727307556463,0.38822,2576.3,2576.1,1.40138896]
[1727307556771,0.38822,2576.3,2576.1,0.38823]
[1727307558165,0.38824,2576.1,2576.0,1.01315896]
[1727307558466,0.76423,2576.2,2576.0,0.38825]
[1727307558863,0.376,2576.2,2575.8,1.01315896]
[1727307559058,0.9706,2576.1,2575.7,0.7604]
[1727307559263,0.38828,2575.8,2575.7,0.3781]
[1727307559976,3.8824,2575.8,2575.4,0.75873]
[1727307560165,1.15291,2575.7,2575.4,0.75873]
[1727307560360,0.38831,2575.6,2575.4,0.75873]
[1727307560566,0.38831,2575.6,2575.4,0.3704]
[1727307560769,3.8824,2575.5,2575.2,40.8]
[1727307560965,6.607,2575.6,2575.1,3.2078]
[1727307561170,0.38835,2575.4,2575.1,3.2078]
[1727307561573,3.577,2575.6,2575.1,6.2378]
[1727307561877,1.1529,2575.7,2575.5,3.03]
[1727307562073,0.7646,2575.7,2575.5,3.03]
[1727307562573,1.1529,2575.7,2575.4,0.38834]
[1727307562970,0.38832,2575.6,2575.3,3.41835]
[1727307563277,0.38833,2575.5,2575.2,0.38836]
[1727307563671,0.38833,2575.5,2575.2,12.46191804]
[1727307566282,0.38833,2575.5,2575.2,4.46140375]
[1727307566879,3.59612,2575.6,2575.3,40.8]
[1727307567179,3.2078,2575.6,2575.5,3.41833]
[1727307567481,3.2078,2575.6,2575.5,3.03]
[1727307567873,3.2078,2575.6,2575.5,44.60433]
[1727307568668,3.59611,2575.6,2575.5,40.8]
[1727307568880,7.47851,2575.6,2575.5,40.8]
[1727307569085,8.06099,2575.6,2575.1,0.386]
[1727307569277,0.38837,2575.2,2575.1,0.386]
[1727307569470,0.3815,2575.5,2575.1,41.186]
[1727307569471,0.38837,2575.3,2575.1,41.186]
[1727307569871,0.4034,2575.4,2575.1,41.186]
[1727307569872,0.38837,2575.2,2575.1,41.186]
[1727307570478,5.24251,2575.2,2575.1,40.8]
[1727307570671,0.38844,2574.8,2574.6,0.3811]
[1727307570868,0.38843,2574.9,2574.6,0.76955]
[1727307571077,0.38843,2574.9,2574.7,40.8]
[1727307571380,4.00094,2575.2,2574.7,41.18844]
[1727307571381,0.38841,2575.0,2574.7,41.18844]
[1727307571577,0.38841,2575.0,2574.7,40.8]
[1727307571775,0.38841,2575.0,2574.7,44.21843]
[1727307572085,0.38843,2574.8,2574.7,43.83]
[1727307573573,0.38843,2574.8,2574.7,40.8]
[1727307574169,1.14603,2574.9,2574.7,41.18844]
[1727307574587,0.38843,2574.8,2574.7,40.8]
[1727307575576,1.14603,2574.9,2574.7,40.8]
[1727307575781,0.3708,2574.9,2574.7,41.18844]
[1727307576085,0.3708,2574.9,2574.8,0.38843]
[1727307576283,0.79319,2575.1,2574.9,0.38842]
[1727307576582,0.3884,2575.0,2574.8,0.38843]
[1727307576787,0.3884,2575.0,2574.9,40.8]
[1727307581977,3.5962,2575.0,2574.9,40.8]
[1727307582184,0.3884,2575.0,2574.9,40.8]
[1727307582379,3.5962,2575.0,2574.9,40.8]
[1727307586091,3.5962,2575.0,2574.5,0.382]
[1727307586092,10.121,2575.0,2574.5,0.382]
[1727307586306,4.17893,2574.7,2574.3,0.4045]
[1727307586482,0.38848,2574.5,2574.3,0.4045]
[1727307586686,0.38848,2574.5,2574.4,40.8]
[1727307586887,0.386,2574.6,2574.4,41.18848]
[1727307587095,0.38848,2574.5,2574.4,41.18848]
[1727307587398,0.38848,2574.5,2574.4,40.8]
[1727307588293,3.41848,2574.5,2574.4,40.8]
[1727307588595,0.38852,2574.3,2574.1,0.38853]
[1727307588794,0.38852,2574.3,2574.2,0.76972]
[1727307588986,0.38852,2574.3,2574.2,0.3812]
[1727307589590,0.38851,2574.3,2574.2,0.3812]
[1727307590282,0.3825,2574.4,2574.2,0.3812]
[1727307590484,0.3825,2574.4,2574.3,0.38851]
[1727307590990,0.38849,2574.4,2574.3,0.38851]
[1727307591298,0.38849,2574.5,2574.3,0.38851]
[1727307591493,3.5903,2574.7,2574.6,0.38846]
[1727307591494,0.3825,2574.7,2574.6,0.38846]
[1727307591697,0.38844,2574.8,2574.6,0.38846]
[1727307592589,0.38843,2574.9,2574.6,0.38845]
[1727307592896,0.38843,2574.9,2574.6,0.78725]
[1727307593096,0.38844,2574.8,2574.6,0.78725]
[1727307594096,7.81211,2575.0,2574.8,0.38843]
[1727307594290,3.9946,2575.0,2574.6,0.3988]
[1727307594592,0.38842,2574.9,2574.7,41.18845]
[1727307594987,0.38843,2574.8,2574.7,40.8]
[1727307595183,3.41843,2574.8,2574.7,40.8]
[1727307595487,4.38952,2574.8,2574.7,40.8]
[1727307595686,8.27352,2574.8,2574.7,40.8]
[1727307595895,7.30243,2574.8,2574.7,40.8]
[1727307596191,3.41843,2574.8,2574.7,40.8]
[1727307596398,0.38843,2574.8,2574.7,40.8]
[1727307598098,8.27352,2574.8,2574.7,40.8]
[1727307598296,0.97113,2574.7,2574.2,0.3739]
[1727307598501,0.38851,2574.3,2573.9,0.3836]
[1727307598700,0.38853,2574.2,2574.0,41.18855]
[1727307598897,0.38854,2574.1,2574.0,40.8]
[1727307600389,0.3906,2574.2,2574.0,40.8]
[1727307600601,0.3906,2574.2,2574.0,41.18855]
[1727307601314,3.03,2574.1,2574.0,40.8]
[1727307601503,0.38856,2574.0,2573.7,3.9703]
[1727307601697,3.4275,2574.1,2573.7,3.5817]
[1727307601891,3.4275,2574.1,2573.8,40.8]
[1727307602104,0.38858,2573.9,2573.8,40.8]
[1727307603001,0.3975,2574.1,2573.8,40.8]
[1727307603309,0.38853,2574.2,2573.9,0.38856]
[1727307603493,3.03,2574.2,2573.8,40.8]
[1727307603798,5.37938,2574.3,2573.8,40.8]
[1727307603799,3.41857,2573.9,2573.8,40.8]
[1727307604695,3.41857,2573.9,2573.7,3.5817]
[1727307604696,6.9156,2573.9,2573.5,0.3673]
[1727307604899,0.97135,2574.2,2573.5,0.3673]
[1727307604900,4.2065,2573.8,2573.5,0.3673]
[1727307605102,0.3886,2573.7,2573.3,0.4025]
[1727307605318,0.3886,2573.7,2573.4,40.8]
[1727307605493,4.2065,2573.8,2573.3,0.4025]
[1727307605700,4.2065,2573.8,2573.1,0.396]
[1727307605701,3.03,2573.5,2573.1,0.396]
[1727307605996,3.41868,2573.2,2572.9,0.4025]
[1727307606196,3.03,2573.0,2572.6,0.396]
[1727307606401,3.03,2573.0,2572.6,0.78476]
[1727307606598,3.03,2573.0,2572.6,8.73588815]
[1727307607000,3.2078,2573.4,2572.7,4.48445598]
[1727307607396,3.2078,2573.4,2572.8,3.03]
[1727307607597,3.59645,2573.4,2572.9,0.4051]
[1727307607806,3.59645,2573.4,2573.0,0.3807]
[1727307608104,3.2078,2573.4,2573.0,0.7694]
[1727307608494,3.2078,2573.4,2573.0,0.3807]
[1727307608814,3.41867,2573.3,2573.0,0.3807]
[1727307609110,3.41869,2573.1,2572.9,4.31513354]
[1727307609311,0.78771,2573.0,2572.7,0.3807]
[1727307609500,1.1494,2573.0,2572.7,0.3807]
[1727307610399,3.2078,2573.1,2572.7,0.3807]
[1727307610710,1.54152,2573.6,2572.9,3.03]
[1727307610914,1.54152,2573.6,2573.4,0.38864]
[1727307610915,0.7795,2573.6,2573.4,0.38864]
[1727307611101,0.7795,2573.6,2573.1,3.2078]
[1727307611302,0.7795,2573.6,2573.2,0.772]
[1727307611499,0.7795,2573.6,2573.3,40.8]
[1727307612106,1.16811,2573.6,2573.3,40.8]
[1727307612305,0.7795,2573.6,2573.3,41.18865]
[1727307612710,0.7795,2573.6,2573.3,41.18866]
[1727307613009,3.5964,2573.7,2573.4,4.13532612]
[1727307613410,3.2078,2573.7,2573.4,4.13532612]
[1727307614309,3.5964,2573.7,2573.4,4.13532612]
[1727307614513,3.2078,2573.7,2573.4,4.52396612]
[1727307614710,3.2078,2573.7,2573.4,4.13532612]
[1727307615106,3.2078,2573.7,2573.5,0.3987]
[1727307615904,3.5964,2573.7,2573.4,4.13532612]
[1727307616111,3.5964,2573.7,2573.4,4.52396612]
[1727307616619,0.38862,2573.6,2573.3,41.18865]
[1727307617101,6.6264,2573.7,2573.3,41.18865]
[1727307618115,6.6264,2573.7,2573.4,0.38864]
[1727307618413,6.62641,2573.7,2573.4,0.38864]
[1727307618818,6.2378,2573.7,2573.3,40.8]
[1727307619212,6.6264,2573.7,2573.4,0.38864]
[1727307619812,0.38862,2573.6,2573.3,41.18865]
[1727307620308,0.77772,2573.6,2573.3,41.18865]
[1727307620719,3.03,2573.5,2573.3,40.8]
[1727307620914,3.8208,2573.5,2573.3,40.8]
[1727307621219,0.38864,2573.4,2573.3,40.8]
[1727307621522,0.3891,2573.6,2573.5,0.38863]
[1727307621722,3.2078,2573.7,2573.6,0.38861]
[1727307622115,3.2078,2573.7,2573.5,0.38862]
[1727307622316,3.2078,2573.7,2573.6,0.38861]
[1727307623218,0.77768,2573.9,2573.5,4.85555185]
[1727307623219,0.38859,2573.8,2573.5,4.85555185]
[1727307623519,0.38862,2573.6,2573.4,0.3807]
[1727307623726,3.03,2573.5,2573.4,0.3807]
[1727307624125,3.03,2573.7,2573.4,0.3807]
[1727307624421,3.4186,2573.7,2573.4,0.76933]
[1727307624723,0.38862,2573.6,2573.4,0.3807]
[1727307624924,3.41861,2573.7,2573.4,0.76933]
[1727307625221,3.03,2573.7,2573.4,0.3807]
[1727307625521,0.38862,2573.6,2573.4,0.3807]
[1727307625920,3.03,2573.7,2573.4,0.3807]
[1727307626118,3.5969,2573.9,2573.3,40.8]
[1727307626119,3.03,2573.5,2573.3,40.8]
[1727307626422,3.03,2573.5,2573.3,41.18865]
[1727307628622,3.03,2573.5,2573.4,0.38864]
[1727307628818,6.6269,2573.9,2573.4,4.48758281]
[1727307629025,6.6269,2573.9,2573.5,0.3766]
[1727307629420,0.38861,2573.7,2573.5,0.3766]
[1727307630123,6.6269,2573.9,2573.5,0.76523]
[1727307630320,0.38858,2573.8,2573.5,0.76523]
[1727307630522,0.3886,2573.7,2573.5,0.3766]
[1727307631227,0.38861,2573.6,2573.5,0.3766]
[1727307631616,6.6269,2573.9,2573.5,0.76523]
[1727307631617,0.3886,2573.7,2573.5,0.76523]
[1727307631818,6.6269,2573.9,2573.5,0.3766]
[1727307632014,3.5969,2573.9,2573.8,0.38858]
[1727307632319,3.2078,2573.9,2573.8,0.38858]
[1727307632724,3.59637,2573.9,2573.7,0.38859]
[1727307633122,3.615,2573.9,2573.6,4.3221022]
[1727307633330,4.0013,2573.9,2573.6,4.3221022]
[1727307633524,3.03,2573.7,2573.5,0.3766]
[1727307633724,3.03,2573.7,2573.6,0.3886]
[1727307634322,3.2078,2573.9,2573.8,0.38858]
[1727307635019,0.38858,2573.8,2573.5,0.3766]
[1727307635332,3.03,2573.7,2573.5,0.3766]
[1727307635524,3.03,2573.7,2573.5,0.76522]
[1727307636622,3.4338,2573.7,2573.6,0.38861]
[1727307636823,3.4338,2573.7,2573.5,0.76522]
[1727307637724,3.4338,2573.7,2573.6,0.38861]
[1727307638432,3.4338,2573.7,2573.5,0.76522]
[1727307638732,0.38862,2573.6,2573.3,41.18865]
[1727307639033,0.38862,2573.6,2572.9,4.186]
[1727307639034,3.03,2573.5,2572.9,1.01315896]
[1727307639330,3.41868,2573.2,2572.9,0.38871]
[1727307639630,3.41868,2573.2,2573.0,40.8]
[1727307639828,1.1577,2573.1,2573.0,40.8]
[1727307640132,3.03,2573.4,2573.1,0.38868]
[1727307641420,3.03,2573.4,2573.0,40.8]
[1727307641421,3.03,2573.4,2573.2,0.38867]
[1727307641627,1.1708,2573.5,2573.3,0.38866]
[1727307641830,1.1708,2573.5,2573.0,40.8]
[1727307642022,1.1708,2573.5,2573.2,0.38866]
[1727307642220,1.55943,2573.5,2573.2,0.38866]
[1727307642524,1.55943,2573.5,2573.1,0.38868]
[1727307642525,0.38865,2573.4,2573.1,0.38868]
[1727307642729,0.397,2573.5,2573.4,0.38864]
[1727307642918,5.06015256,2573.8,2573.5,0.38862]
[1727307642919,0.3894,2573.8,2573.5,0.38862]
[1727307643123,3.80799,2573.8,2573.5,0.78662]
[1727307643837,3.4194,2573.8,2573.6,0.38861]
[1727307644026,3.4194,2573.8,2573.7,0.3886]
[1727307644226,0.3894,2573.8,2573.6,0.38861]
[1727307644634,0.3894,2573.8,2573.5,0.398]
[1727307645335,0.3894,2573.8,2573.7,0.3886]
[1727307645526,0.4019,2573.9,2573.5,1.41115896]
[1727307645830,0.4019,2573.9,2573.8,0.38858]
[1727307646040,0.38859,2573.8,2573.5,1.79977896]
[1727307646233,0.38859,2573.8,2573.5,0.78662]
[1727307646234,0.3806,2573.8,2573.5,0.78662]
[1727307646531,3.4106,2573.8,2573.5,0.78662]
[1727307646733,3.4106,2573.8,2573.5,0.398]
[1727307647637,3.4106,2573.8,2573.6,0.38861]
[1727307647830,3.4106,2573.8,2573.5,0.78662]
[1727307648337,3.4106,2573.8,2573.5,1.79977896]
[1727307650632,0.3806,2573.8,2573.5,1.41115896]
[1727307650938,4.54634016,2574.0,2573.7,0.3886]
[1727307651242,4.54634016,2574.0,2573.7,0.38859]
[1727307651433,4.54634016,2574.0,2573.6,1.01315896]
[1727307651636,0.3889,2574.2,2574.1,0.38854]
[1727307651839,1.51634016,2574.3,2574.2,0.38852]
[1727307652132,1.51634016,2574.4,2574.2,41.18852]
[1727307652931,5.90974016,2574.5,2574.2,41.18852]
[1727307653436,1.51634016,2574.4,2574.3,0.38851]
[1727307653651,5.90974016,2574.5,2574.2,41.18851]
[1727307654431,5.90974016,2574.5,2574.3,0.38851]
[1727307655327,5.90974016,2574.5,2574.2,41.18852]
[1727307655642,4.3934,2574.5,2574.2,41.18852]
[1727307656834,5.90974016,2574.5,2574.2,41.18852]
[1727307657036,4.3934,2574.5,2574.2,41.18852]
[1727307657249,4.3934,2574.5,2574.3,0.38851]
[1727307657732,3.9979,2574.5,2574.4,0.38849]
[1727307657942,3.2078,2574.5,2574.4,4.48414002]
[1727307658124,3.2078,2574.5,2574.3,13.3785419]
[1727307658326,3.2078,2574.5,2574.3,5.0314]
[1727307658528,3.2078,2574.5,2574.4,4.48414002]
[1727307658925,3.2078,2574.5,2574.4,8.36814002]
[1727307659728,3.2078,2574.5,2574.3,1.1466]
[1727307660342,3.03,2574.4,2574.2,40.8]
[1727307660539,0.3753,2574.3,2574.2,40.8]
[1727307661133,3.79381,2574.3,2574.2,40.8]
[1727307661328,0.3753,2574.3,2574.2,0.38852]
[1727307661534,0.3675,2574.4,2574.3,0.38851]
[1727307662633,3.421,2574.7,2574.3,8.25258838]
[1727307662843,3.421,2574.7,2574.5,0.38847]
[1727307663736,3.80945,2574.7,2574.4,0.75638]
[1727307663941,3.80945,2574.7,2574.4,0.3679]
[1727307664139,3.80945,2574.7,2574.3,0.3885]
[1727307664343,3.80945,2574.7,2574.2,3.2078]
[1727307664344,3.80945,2574.7,2574.4,0.38849]
[1727307664542,3.03,2574.5,2574.2,3.2078]
[1727307664732,0.3885,2574.4,2574.1,40.8]
[1727307664938,0.3885,2574.4,2574.1,41.18854]
[1727307664939,3.03,2574.3,2574.1,41.18854]
[1727307665235,3.03,2574.3,2574.1,41.18853]
[1727307666345,0.7682,2574.4,2574.2,0.38852]
[1727307666738,0.7682,2574.4,2574.3,0.38851]
[1727307667741,0.3802,2574.4,2574.3,0.38851]
[1727307667937,0.3802,2574.4,2574.1,40.8]
[1727307668243,0.3802,2574.4,2574.3,0.38851]
[1727307668548,0.3802,2574.4,2574.2,4.84680918]
[1727307668859,0.3802,2574.4,2574.2,4.45829918]
[1727307669237,0.3802,2574.4,2574.2,4.84680918]
[1727307670537,0.3802,2574.4,2574.3,0.38851]
[1727307670838,3.8848,2574.3,2573.5,1.01315896]
[1727307671041,6.2378,2573.6,2573.1,1.01315896]
[1727307671343,3.03,2573.3,2573.1,40.8]
[1727307671736,3.41866,2573.3,2573.1,40.8]
[1727307671938,3.03,2573.3,2572.7,1.01315896]
[1727307672140,3.03,2573.0,2572.6,4.22095896]
[1727307672336,3.03,2573.0,2572.7,0.38874]
[1727307672542,3.03,2573.0,2572.8,40.8]
[1727307672943,3.03,2573.0,2572.8,41.18873]
[1727307673840,3.03,2573.0,2572.8,40.8]
[1727307674239,3.03,2573.0,2572.8,41.18873]
[1727307674647,3.03,2573.0,2572.8,40.8]
[1727307675843,3.03,2573.0,2572.8,41.18873]
[1727307676045,3.03,2573.0,2572.8,40.8]
[1727307676444,3.41868,2573.2,2572.8,41.18873]
[1727307677342,3.03,2573.2,2572.9,0.38872]
[1727307677543,3.03,2573.2,2572.8,41.18873]
[1727307677745,3.41868,2573.2,2572.8,41.18873]
[1727307677939,3.03,2572.9,2572.8,40.8]
[1727307678144,3.03,2572.9,2572.7,0.38875]
[1727307678348,3.4221,2572.9,2572.7,0.38875]
[1727307678547,3.4221,2572.9,2572.7,4.43246548]
[1727307678743,3.4221,2572.9,2572.7,4.04371548]
[1727307678948,3.4221,2572.9,2572.7,4.43245548]
[1727307679952,3.4221,2572.9,2572.8,0.38873]
[1727307680149,3.03,2573.2,2572.9,0.38872]
[1727307680354,3.03,2573.2,2572.7,4.04371548]
[1727307680654,3.03,2573.2,2572.9,0.38871]
[1727307680847,3.41868,2573.2,2572.8,4.69823314]
[1727307681047,3.03,2573.2,2572.5,45.9826]
[1727307681349,3.03,2573.2,2573.0,0.3887]
[1727307682746,3.03,2573.2,2572.8,3.2078]
[1727307682947,3.6023,2573.5,2572.8,3.2078]
[1727307682948,3.2078,2573.5,2573.1,4.28397161]
[1727307683148,3.03,2573.6,2573.4,0.38864]
[1727307684050,3.03,2573.6,2573.5,4.30211922]
[1727307684456,3.581,2573.8,2573.5,40.8]
[1727307684758,3.41861,2573.6,2573.5,40.8]
[1727307685251,6.611,2573.8,2573.5,41.18862]
[1727307686351,6.99958,2573.8,2573.5,41.18862]
[1727307686649,6.99958,2573.8,2573.5,40.8]
[1727307687755,0.3886,2573.7,2573.5,40.8]
[1727307688451,3.41861,2573.6,2573.5,40.8]
[1727307688651,0.38866,2573.3,2573.0,0.3887]
[1727307688853,0.38866,2573.3,2572.9,3.5777]
[1727307688854,0.38869,2573.2,2572.9,0.7591]
[1727307689154,3.03,2573.1,2573.0,45.40793563]
[1727307689453,3.03,2573.3,2573.0,41.1887]
[1727307689657,3.41866,2573.3,2573.0,45.40793563]
[1727307689955,3.03,2573.3,2573.0,45.40792563]
[1727307690652,3.41866,2573.3,2573.0,45.40792563]
[1727307691049,0.3805,2573.4,2573.0,45.01923563]
[1727307691351,3.03,2573.1,2573.0,40.8]
[1727307691553,3.03,2573.3,2573.2,0.38867]
[1727307691850,0.882,2574.3,2573.6,0.38861]
[1727307691851,3.2078,2573.8,2573.6,0.38861]
[1727307692151,3.2078,2573.8,2573.2,4.17995744]
[1727307692152,6.2378,2573.8,2573.3,0.76066]
[1727307692455,6.2378,2573.8,2573.4,40.8]
[1727307692456,0.38862,2573.6,2573.4,40.8]
[1727307692656,3.03,2573.5,2573.4,40.8]
[1727307692847,1.18453,2573.5,2573.4,40.8]
[1727307693049,4.21453,2573.5,2573.4,40.8]
[1727307693248,4.21453,2573.5,2573.2,0.38866]
[1727307693249,11.89088,2573.5,2572.7,3.2078]
[1727307693450,11.89088,2573.5,2572.9,0.38872]
[1727307693451,3.03,2573.0,2572.9,0.38872]
[1727307693657,3.03,2573.0,2572.9,45.64127447]
[1727307693852,3.03,2573.0,2572.9,41.18872]
[1727307694459,3.03,2573.0,2572.9,40.8]
[1727307694959,0.38868,2573.2,2572.9,41.18872]
[1727307695753,0.3887,2573.1,2572.9,40.8]
[1727307696153,0.38868,2573.2,2572.9,41.18871]
[1727307696558,0.3887,2573.0,2572.9,40.8]
[1727307696759,1.37724,2573.4,2572.7,3.6095]
[1727307696760,3.03,2573.1,2572.7,3.59654]
[1727307696958,0.38873,2572.9,2572.7,3.2078]
[1727307697153,1.14971,2573.0,2572.8,40.8]
[1727307697560,0.761,2573.0,2572.8,40.8]
[1727307697866,0.38872,2572.9,2572.8,40.8]
[1727307698559,1.14971,2573.0,2572.8,40.8]
[1727307698766,0.3747,2573.0,2572.8,41.18873]
[1727307698960,0.76341,2573.0,2572.8,41.18873]
[1727307700661,0.3887,2573.1,2572.9,0.38872]
[1727307700969,0.38868,2573.2,2572.8,40.8]
[1727307701467,0.38868,2573.2,2573.0,0.38869]
[1727307701857,0.38867,2573.2,2573.0,0.38869]
[1727307702167,0.38867,2573.2,2573.1,0.38869]
[1727307702661,1.18947,2573.3,2573.1,0.38869]
[1727307702967,1.18947,2573.3,2573.0,0.3887]
[1727307702968,0.38868,2573.2,2573.0,0.3887]
[1727307703355,0.38868,2573.2,2573.1,0.38869]
[1727307703555,0.38868,2573.2,2573.0,0.38869]
[1727307703961,1.18947,2573.3,2573.1,0.38869]
[1727307704265,0.38867,2573.2,2573.0,0.7716]
[1727307704761,0.38867,2573.2,2573.1,0.38869]
[1727307705460,0.38867,2573.2,2573.0,0.77159]
[1727307706865,0.38868,2573.2,2573.0,0.77159]
[1727307708468,3.2078,2573.5,2573.1,3.8864]
[1727307708671,0.7941,2573.6,2573.1,5.19486758]
[1727307708869,1.18272,2573.6,2573.4,0.38864]
[1727307709065,1.18272,2573.6,2573.1,5.19486758]
[1727307709370,1.18272,2573.6,2573.2,0.38867]
[1727307709371,0.38865,2573.4,2573.2,0.38867]
[1727307709566,0.38868,2573.2,2573.0,0.3829]
[1727307710162,0.79128,2573.2,2573.0,0.3829]
[1727307711971,0.79128,2573.2,2572.9,0.79661]
[1727307712865,0.79127,2573.2,2572.9,0.79661]
[1727307713167,0.4026,2573.2,2573.1,0.38869]
[1727307713369,0.3906,2573.5,2573.0,7.47368022]
[1727307713665,0.3906,2573.5,2573.1,4.26588022]
[1727307713878,0.3906,2573.5,2573.3,0.38866]
[1727307714269,0.77923,2573.5,2573.2,0.38867]
[1727307714479,0.77923,2573.5,2573.2,0.78167]
[1727307714669,0.3906,2573.5,2573.3,0.38865]
[1727307714865,0.3906,2573.5,2573.3,0.38866]
[1727307715065,0.77923,2573.5,2573.2,0.78167]
[1727307715269,0.77923,2573.5,2573.3,0.38866]
[1727307715467,1.52086651,2573.7,2573.3,3.03]
[1727307715667,1.52086651,2574.1,2573.7,0.9715]
[1727307715874,0.12287495,2574.2,2573.9,3.2078]
[1727307716071,0.38854,2574.1,2573.8,2.14822896]
[1727307716276,0.38854,2574.1,2573.9,40.8]
[1727307716777,0.38853,2574.2,2573.9,41.18856]
[1727307718074,3.41855,2574.0,2573.9,40.8]
[1727307718672,0.38857,2573.9,2573.6,3.5964]
[1727307719073,0.38857,2573.9,2573.7,4.43943131]
[1727307719273,0.38857,2573.9,2573.7,45.23943131]
[1727307720773,0.4004,2574.0,2573.7,45.23943131]
[1727307720972,0.38857,2573.9,2573.7,45.23943131]
[1727307721684,0.76087,2573.9,2573.7,45.23943131]
[1727307723073,3.41858,2573.8,2573.7,45.23943131]
[1727307723271,3.41858,2573.8,2573.2,2.02734839]
[1727307723272,3.41859,2573.8,2573.2,1.78285896]
[1727307723471,3.41859,2573.8,2573.5,0.38861]
[1727307723684,3.41859,2573.8,2573.5,41.18861]
[1727307724382,0.3886,2573.7,2573.5,40.8]
[1727307724684,0.3723,2573.9,2573.5,40.8]
[1727307724880,0.76088,2573.9,2573.6,0.3886]
[1727307725079,1.92126651,2574.0,2573.5,40.8]
[1727307725278,1.52086651,2574.1,2573.8,3.03]
[1727307725486,5.83612699,2574.4,2574.3,0.38851]
[1727307725487,3.2078,2574.4,2574.3,0.38851]
[1727307725683,3.2078,2574.4,2573.9,6.07057258]
[1727307725886,3.2078,2574.4,2573.9,6.45913258]
[1727307725887,0.38852,2574.3,2573.9,6.45913258]
[1727307726182,0.38851,2574.3,2574.0,0.38855]
[1727307726378,0.38851,2574.3,2573.9,5.05741362]
[1727307726379,0.38855,2574.0,2573.9,5.05741362]
[1727307726574,0.38855,2574.1,2573.9,4.67201362]
[1727307726886,0.79294,2574.1,2573.9,4.30391362]
[1727307727777,0.79294,2574.1,2573.9,4.69248362]
[1727307727986,0.3987,2574.2,2574.0,0.38855]
[1727307728376,0.79292,2574.3,2573.9,4.30391362]
[1727307728377,0.4044,2574.3,2574.1,0.38852]
[1727307728580,0.4044,2574.3,2574.2,0.38852]
[1727307728976,0.79291,2574.3,2574.1,0.38853]
[1727307729485,0.79291,2574.3,2574.0,0.3967]
[1727307729486,0.79291,2574.3,2574.2,0.38852]
[1727307729685,0.79291,2574.3,2574.1,0.38853]